Workbook

Sheet INFO
A1: Draft spreadsheet, according to template for all EPB standards
A2: Concerns EPB standard:
A3: ISO/DIS 13789, Thermal performance of buildings —Transmission and ventilation heat transfer coefficients — Calculation method
A4: Produced by the Project Leader for the preparation of this standard
A6: DISCLAIMER:
A7: · This spreadsheet has been developed in the framework of the preparation and revision of the set of EN or ISO standards on the energy performance of buildings, to support the European "Energy Performance of Buildings Directive" recast (EPBD-recast, directive 2010/31/EU).
A8: · It is meant for use by CEN and ISO technical committee(s) and the working group(s) working on the preparation or revision of the EPB-standard to which this spreadsheet applies. The spreadsheet supports checking that all equations in the developed standard are consistent and can be linked with other relevant standards. It is not meant to perform a full or partial energy performance calculation.
A9: · The spreadsheet supports the expert user of the standards, in particular those who want to review the content of the standard and those who want to translate the standard to a software, to understand the correct interpretation of the equations and calculation steps in the standard.
A10: · Although it has been developed with care, neither the technical committee(s), nor the working group(s) and experts related to the EPB- standard to which this spreadsheet applies warrant that the calculations and procedures in this spreadsheet are free of errors. The technical committees as well as the working groups and their respective members expressly disclaim any liability or responsibility arising from use of this spreadsheet, or any consequences thereof. Any responsibility arising from the use of this spreadsheet lies with the user.
A11: DRAFT VERSION:
A12: · As long as the associated EPB standard or any of the other EPB standards to which it is directly linked are in a draft stage, this spreadsheet is also a draft version only.
A13: WARNINGS:
A14: · Note that the spreadsheet may not allow testing all calculation options that are possible according to the standard to which it applies. This remark applies in particular but not only to limitations on the number instances of a variable that can be considered.
A15: · In case of differences, the standard should be regarded as the reference, not the spreadsheet. However, during the standard's drafting phase, shortcomings in the draft standard may have been detected and dealt with in the spreadsheets (ideally, such differences are marked).
A16: · Note also that these spreadsheets are purely intended for testing and demonstration and therefore not aiming to be user friendly or to be protected against wrong or improper use.
A17: TERMS OF USE:
A18: · The user is not allowed to redistribute a modified version of this spreadsheet.
A19: · The author(s) would appreciate your feed back on the spreadsheet via the comment sheets for the associated draft standard to be prepared by the national standards bodies during enquiry of the draft standard(s),
A22: SCOPE OF THIS SPREADSHEET:
A23: THIS SPREADSHEET PROVIDES ONE CALCULATION EXAMPLE PROVIDING TRANSMISSION AND
A24: VENTILATION HEAT TRANSFER COEFFICIENTS
A25: THE OUTPUT IS SUITED TO THE INPUT FOR e.g.:
A26: - CALCULATION OF THE OVERALL (SEASONAL) THERMAL TRANSMITTANCE OF A BUILDING
A27: - CALCULATION OF ENERGY NEEDS FOR HEATING AND COOLING (MONTHLY METHOD)
A28: - CALCULATION OF ENERGY NEEDS FOR HEATING AND COOLING (HOURLY METHOD)
A30: Intended use of this document Those responsible for the drafting of actual individual EPB standards shall - read and understand the following documents - EN/TS 16628 Basic Principles (in short "BP") - EN/TS 16629 Detailed Technical Rules (in short "DTR") - Most recent draft of ISO 52000-1 cq EN 15603 ("Overarching Standard", in short "OA")) - Most recent draft of ISO/TR 52000-2 cq EN/TR 15615 Technical report to overarching standard; - Prepare their individual EPB standard according to CEN rules, BP, DTR and OA - Prepare the accompanying technical report using the dedicated template - Prepare an accompanying XLS spreadsheet, to demonstrate inputs, output and calculation chain. This sample excel spreadsheet provides a template to help in this task.
A31: Why an Excel spreadsheet? To demonstrate the validity and required data I/O for the calculation procedure defined in the standard: - list of all input needed --> sheet "Method_input" - list of intended output --> sheet "Method_output" - calculation sequence --> sheet "Method_calculation"
A32: Method_input List in this sheet all the input required for the calculation in one time step. THIS SHEET IS REQUIRED TO DEMONSTRATE THE REQUIRED DATA INPUT.
A33: Method_calculation Detail in this sheet your calculation procedure. There should be one calculation in one cell for each equation in the standard. THIS SHEET IS REQUIRED TO DEMONSTRATE THE CALCULATION PROCEDURE.
A34: Method_output List in this sheet all the intended output of the procedure. THIS SHEET IS REQUIRED TO DEMONSTRATE THE AVAILABLE DATA OUTPUT.

Sheet Method_input
A1: THIS IS A MANDATORY SHEET All input data for the method shall be listed here. In the simplest version, values for data input in column D (both green and blue background) may be inserted manually. Varying data (green background) can be fed from the "input_series" sheet. In this sample data sheet, product data (blue background) is linked to a sample catalogue built in the "Detailed_input" sheet
A4: Name | B4: Symbol | C4: Software name | D4: Unit | E4: Value | F4: Range | G4: Origin | H4: Varying | I4: Notes
A5: Table 4 – Identifiers for building geometric characteristics
A6: Name | B6: Symbol | C6: Software name | D6: Unit | E6: Value | F6: Range | G6: Origin | H6: Varying
A7: area of building envelope element i | B7: Ae;i | C7: A_e_i | D7: m2 | E7: 100 | F7: 0...∞ | H7: No
A8: area of building envelope element j | B8: Ae;j | C8: A_e_j | D8: m2 | E8: 100
A9: area of building envelope element n | B9: Ae;n | C9: A_e_n | D9: m2 | E9: 100
A10: length of linear thermal bridge k | B10: lk | C10: l_k | D10: m | E10: 40 | F10: 0...∞ | H10: No
A11: length of linear thermal bridge m | B11: lm | C11: l_m | D11: m | E11: 40 | F11: 0...∞ | H11: No
A12: length of linear thermal bridge n | B12: ln | C12: l_n | D12: m | E12: 10 | F12: 0...∞ | H12: No
A13: volume of air in unconditioned space | B13: Vu | C13: V_u | D13: m3 | E13: 250 | F13: 0...∞ | H13: No
A14: conventional air change rate between the unconditioned space and the external environment | B14: nue | C14: n_ue | D14: h-1 | E14: 3 | F14: 0.1…10 | G14: ISO 13789 Table 8 | H14: No
A15: Table 5 – Identifiers for building boundary conditions
A16: Name | B16: Symbol | C16: Software name | D16: Unit | E16: Value | F16: Range | G16: Origin | H16: Varying
A17: indoor environment temperature in the building under consideration | B17: qint | C17: theta_int | D17: °C | E17: 19 | F17: 0…50 | H17: Yes
A18: indoor environment temperature in adjacent unconditioned space | B18: qint;u | C18: theta_int_u | D18: °C | E18: 8 | F18: 0…50 | H18: Yes
A19: indoor environment temperature in adjacent building | B19: qint;adj | C19: theta_int_adj | D19: °C | E19: 15 | F19: 0…50 | H19: Yes
A20: external temperature | B20: qext | C20: theta_ext | D20: °C | E20: 5 | F20: -50…+50 | H20: Yes
A22: Table 6 — Identifiers for thermal characteristics of building fabric
A23: Name | B23: Symbol | C23: Software name | D23: Unit | E23: Value | F23: Range | G23: Origin | H23: Varying
A24: thermal transmittance of element ii | B24: Ui | C24: U_i | D24: W/(m2·K) | E24: 0.15 | F24: 0...10 | G24: ISO 10077-1 for windows and doors; ISO 12631 for curtain walls; ISO 6946 for other walls and for roofs. | H24: No
A25: linear thermal transmittance of thermal bridge k | B25: Yk | C25: psi_k | D25: W/(m·K) | E25: 0.16 | F25: 0…10 | G25: ISO 10077-1 for windows and doors; ISO 12631 for curtain walls; ISO 6946 for other walls and for roofs.
A26: linear thermal transmittance of thermal bridge m | B26: Ym | C26: psi_m | D26: W/(m·K) | E26: 0.06 | F26: 0…10 | G26: ISO 10077-1 for windows and doors; ISO 12631 for curtain walls; ISO 6946 for other walls and for roofs. | H26: No
A27: linear thermal transmittance of thermal bridge n | B27: Yn | C27: psi_n | D27: W/(m·K) | E27: 0.09 | F27: 0…10 | G27: ISO 10077-1 for windows and doors; ISO 12631 for curtain walls; ISO 6946 for other walls and for roofs.
A28: monthly ground heat transfer coefficient | B28: Hg;m | C28: H_g_m | D28: W/K | F28: 0…∞ | G28: ISO 13370 | H28: No
A29: annual average ground heat transfer coefficient | B29: Hg | C29: H_g | D29: W/K | E29: 20 | F29: 0…∞ | G29: ISO 13370 | H29: No
A30: heat transfer to an adjacent building, at a temperature different from that of the building under consideration | B30: Hia | C30: H_i_a | D30: W/K | E30: 5 | F30: 0…∞ | G30: ISO 13370 | H30: No | I30: these calculated by formula (3) in ISO 13789
A31: heat transfer coefficient between the conditioned space and the unconditioned space | B31: Htr;iu | C31: H_tr_iu | D31: W/K | E31: 6 | F31: 0…∞ | G31: ISO 13370 | H31: No | I31: these calculated by formula (3) in ISO 13789
A32: heat transfer coefficient between the unconditioned space and the external environment | B32: Htr;ue | C32: H_tr_ue | D32: W/K | E32: 7 | F32: 0…∞ | G32: ISO 13370 | H32: No | I32: these calculated by formula (3) in ISO 13789
A33: air flow rate through heated or cooled space | B33: q | C33: q | D33: m3/h | E33: 4 | F33: 0…∞ | H33: No
A34: heat flow rate generated within an unconditioned space (e.g. solar gains) | B34: Φ | C34: phi | D34: W | E34: 100 | F34: 0…∞ | H34: No
A35: point thermal transmittance of point thermal bridge j | B35: cj | C35: chi_j | D35: W/K | E35: 0 | F35: 0…∞ | G35: from tables or catalogues prepared in accordance with ISO 14683 or calculated according to ISO 10211
A37: Table 7 — Identifiers for constants
A38: Name | B38: Symbol | C38: Software name | D38: Unit | E38: Value | F38: Range | G38: Origin | H38: Varying
A39: density of air | B39: ρa | C39: rho_a | D39: kg/m3 | E39: 1.2 | G39: ISO 13789 Table 8 | H39: No
A40: specific heat capacity of air at constant pressure | B40: Cp | C40: c_p | D40: kJ/(kg·K) | E40: 1 | G40: ISO 13789 Table 8 | H40: No

Sheet Method_calculation
A1: THIS IS A MANDATORY SHEET One time step calculation shall be described here. For each calculation step (= 1 row) data for the formula in column D shall be taken from the "Method_input" sheet or previous calculation steps. Include in the column "Formula ref" its number in the standard text. The example is based on EN 15316-4-1:2008 Copy and paste a copy of the equation into column "Formula" Use the column note for information on the calculation
A3: Description | B3: Symbol | C3: Unit | D3: Value | E3: Formula ref | F3: Formula | G3: Notes
A5: The transmission heat transfer coefficient through the building elements separating the conditioned space and the external environment | B5: Hd | C5: W/K | D5: =Method_input!E7*Method_input!E24+Method_input!E12*Method_input!E26+Method_input!E35 -> 15.6 | E5: Formula (3) | G5: according to ISO 10211 or according to Formula (3)
A6: coefficient for heat transfer via the ground | B6: Hg | C6: W/K | D6: =Method_input!E29 -> 20 | E6: input data | G6: ISO 13370
A7: coefficient b | B7: b | C7: - | D7: =Method_input!E31/(Method_input!E31+Method_input!E32) -> 0.4615384615 | E7: Formula (5) | G7: reduction factor for adjacent unheated space
A8: transmission heat transfer coefficient between a conditioned space and the external environments via unconditioned spaces | B8: Hu | C8: W/K | D8: =Method_input!E31*D7 -> 2.769230769 | E8: Formula (5)
A9: air flow rate between heated space and unheated space | B9: qiu | C9: m³/h | D9: 0 | E9: Formula (11)
A10: air flow rate between the unheated space and the external environment | B10: que | C10: m³/h | D10: =Method_input!E13*Method_input!E14/3600 -> 0.2083333333 | E10: Formula (12)
A11: Hiu and Hue include the transmission and ventilation heat transfers | B11: Hiu | C11: W/K | D11: =Method_input!E31+Method_calculation!D18 -> 7.32 | E11: Formula (6)
B12: Hue | C12: W/K | D12: =Method_input!E32+Method_calculation!D18 -> 8.32 | E12: Formula (6)
A13: ventilation heat transfer coefficients | B13: Hve,ue | C13: W/K | D13: =Method_input!E39*Method_input!E40*D10 -> 0.25 | E13: Formula (7)
B14: Hve,iu | C14: W/K | D14: =Method_input!E39*Method_input!E40*D9 -> 0 | E14: Formula (7)
A15: heat transfer to an adjacent building, at a temperature different from that of the building under consideration | B15: Ha | C15: W/K | D15: =D17*Method_input!E30 -> 1.428571429 | E15: Formula (8)
A16: Transmission heat transfer coefficient, | B16: Htr | C16: W/K | D16: =D5+D6+D7+D15 -> 37.49010989 | E16: Formula (1)
A17: coefficient b | B17: b | C17: - | D17: =(Method_input!E17-Method_input!E19)/(Method_input!E17-Method_input!E20) -> 0.2857142857 | E17: Formula (9) | G17: reduction factor for adjacent building at a different temperature
A18: ventilation heat transfer coefficient | B18: Hve | C18: W/K | D18: =0.33*Method_input!E33 -> 1.32 | E18: Formula (10)
A19: transmission heat transfer coefficient due to thermal bridges | B19: Htb | C19: W/K | D19: =(Method_input!E10*Method_input!E25+Method_input!E11*Method_input!E26+Method_input!E12*Method_input!E27) -> 9.7
A20: temperature in an unconditioned space | B20: qu | C20: °C | D20: =(Method_input!E34+(Method_input!E17*D11)+(Method_input!E20*Method_calculation!D12))/(Method_calculation!D11+Method_calculation!D12) -> 17.94629156 | E20: Formula (C.1)

Sheet Method_output
A1: THIS IS A MANDATORY SHEET Output of one step calculation shall be indicated here. Each cell in the column value shall be a reference to a single cell in the "Method_calculation" sheet. The macro will take the calculation step results and fill the values table in the "Output_series" sheet.
A4: Name | B4: Symbol | C4: Software name | D4: Unit | E4: Value | F4: Range | G4: Intended destination | H4: Varying | I4: Notes
A6: direct heat transfer coefficient between the heated or cooled space and the exterior | B6: Hd | C6: H_d | D6: W/K | E6: =Method_calculation!D5 -> 15.6 | F6: 0…∞ | G6: M2-5 | H6: No
A7: steady-state transmission heat transfer coefficient through the ground | B7: Hg | C7: H_g | D7: W/K | E7: =Method_calculation!D6 -> 20 | F7: 0…∞ | G7: M2-5 | H7: No
A8: transmission heat transfer coefficient through unconditioned spaces | B8: Hu | C8: H_u | D8: W/K | E8: =Method_calculation!D8 -> 2.769230769 | F8: 0…∞ | G8: M2-5 | H8: No
A9: steady-state transmission and ventilation heat transfer coefficient to adjacent buildings | B9: Ha | C9: H_a | D9: W/K | E9: =Method_calculation!D15 -> 1.428571429 | F9: 0…∞ | G9: M2-5 | H9: No
A10: transmission heat transfer coefficient due to thermal bridges | B10: Htb | C10: H_tb | D10: W/K | E10: =Method_calculation!D19 -> 9.7 | F10: 0…∞ | G10: M2-5 | H10: No
A11: transmission heat transfer coefficient | B11: Htr | C11: H_tr | D11: W/K | E11: =Method_calculation!D16 -> 37.49010989 | F11: 0…∞ | G11: M2-5 | H11: No
A12: ventilation heat transfer coefficient | B12: Hve | C12: H_ve | D12: W/K | E12: =Method_calculation!D18 -> 1.32 | F12: 0…∞ | G12: M2-6 | H12: No

Sheet History
B2: Date | C2: Version scope | D2: Changes, notes
B4: 2014.05.16 | C4: First draft version (internal)
B5: 2014.05.16 | C5: Updated draft version (internal)
B6: 2015.06.15 | C6: ISO/TC163/SC 2 N document, for public distribution
